Workbook

Sheet Affordability Tool
B1: ACA Exemptions Related to Income
B2: *All FPL levels are for the lower 48 states, not Alaska or Hawaii
B3: Filing Status
E4: Is the taxpayer or spouse age 65 or older?
B5: Filing Status | C5: Single | F5: No
F6: You must answer this!
B7: Total # of People in the Tax Household | C7: 1
E8: Dependent income (only if filing requirement)
D10: On the tax return
B11: AGI | C11: F1040 Line 37
B12: Tax-exempt interest | C12: F1040 Line 8b
B13: Social Security Income | C13: F1040 Line 20a
B14: Taxable Social Security | C14: F1040 line 20b
B15: Foreign Income | C15: F2555 Line 45 & 50
B16: Pre-tax deduction for employer-sponsored coverage
C17: Subtotal | D17: =SUM(D11+D12+D15) -> 0 | E17: =SUM(E11+E12+E15) -> 0
B18: Household Income (for Line 7 or Code A) | D18: =SUM(D17:E17) -> 0
B20: Test for Exemption for Income Below Filing Threshold (F8965, Line 7)
B21: *Note: Also calculated in TaxSlayer. This tool does not consider gross income below filing threshold.
B22: Taxpayer's filing threshold is… | D22: =IF(AND(C5="Single",F5="No"),10350,IF(AND(C5="Single",F5="One is 65 or older"),11900,IF(AND(C5="MFJ",F5="No"),20700,IF(AND(C5="MFJ",F5="One is 65 or older"),21950,IF(AND(C5="MFJ",F5="Both are 65 or older"),23200,IF(AND(C5="HOH",F5="No"),13350,IF(AND(C5="HOH",F5="One is 65 or older"),14900,IF(AND(C5="QW",F5="No"),16650,IF(AND(C5="QW",F5="One is 65 or older"),17900,IF(C5="MFS",4050)))))))))) -> 10350
B23: Is income below the filing threshold? | D23: =IF(D22>D18, "YES the household is exempt", "NO exemption does not apply. CONTINUE") -> YES the household is exempt
B25: Test for Code G Exemption (Medicaid Coverage Gap)
B26: Only use this exemption if, in 2016, the uninsured person lived in: Alabama, Florida, Georgia, Idaho, Kansas, Louisiana, Maine, Mississippi, Missouri, Nebraska, North Carolina, Oklahoma, South Carolina, South Dakota, Tennessee, Texas, Utah, Virginia, Wisconsin, or Wyoming | D26: Did an uninsured person live in a state that did not expand Medicaid?
D27: Household income = | E27: =SUM(D11+D12+D15+(D13-D14)+E11+E12+E15+(E13-E14)) -> 0
D28: Less than 138% FPL? | E28: =IF(VLOOKUP(C7,'138FPL'!A2:B8,2,FALSE)>E27, "Yes, enter Code G if the person lived in an eligible state.","No, Code G does not apply.") -> Yes, enter Code G if the person lived in an eligible state.
B31: Test for Code A Exemption (Affordability)
C33: 8.13% of income = | D33: =SUM($D$18+$D$16+$E$16)*0.0813 -> 0
B35: (1) Does the taxpayer (or spouse) have an offer of self-only coverage from his or her own employer? If yes, determine the offer's affordability and STOP.
C36: TP | D36: SP | E36: TP Annual Cost | F36: SP Annual Cost
B37: Self-only premium (per month) | E37: =SUM(C37*12) -> 0 | F37: =SUM(D37*12) -> 0
B38: =IF(ISBLANK(C37)," ",IF(E37>D33,"TP's cost of self-only coverage is unaffordable. Code A applies to TP.","TP's cost of self-only coverage is affordable. Code A does NOT apply.")) -> 
B39: =IF(ISBLANK(D37)," ",IF(F37>$D$33,"Spouse's cost of self-only coverage is unaffordable. Code A applies to spouse.","Spouse's cost of self-only coverage is affordable. Code A does NOT apply.")) -> 
B40: Note: If TP & SP (1) each had affordable employer offers and (2) had no affordable family offer and (3) the combined cost of the self-only offers is greater than 8.13% of income, claim Code G exemption for the entire year.
B41: (2) Does anyone have an offer of family coverage from an employer? If yes, determine the offer's affordability and STOP.
C42: TP's Employer | D42: SP's Employer | E42: TP Annual Cost | F42: SP Annual Cost
B43: Family premium (per month) | E43: =SUM(C43*12) -> 0 | F43: =SUM(D43*12) -> 0
B44: =IF(ISBLANK(C43)," ",IF(E43>D33,"The TP's family coverage offer is unaffordable. Code A applies to everyone eligible for that coverage.","Family coverage is affordable. Code A does NOT apply.")) -> 
B45: =IF(ISBLANK(D43)," ",IF(F43>D33,"The SP's family coverage offer is unaffordable. Code A applies to everyone eligible for that coverage.","Family coverage is affordable. Code A does NOT apply.")) -> 
B47: (3) If there is no employer offer, is the cost of marketplace coverage unaffordable?
B49: 1. Monthly lowest cost bronze plan (LCBP) | E49: Who is included in Line 1? Look up the LCBP for each person in the household who is: (1) not offered employer coverage, and (2) not eligible for another exemption. Include people who are eligible for or enrolled in Medicare, Medicaid, CHIP and the marketplace. **Where do I look this up? See tab "Where Do I Find LCBP & SLCSP'**
B50: 2. Household income | D50: =D18 -> 0
B51: 3. Nontaxable Social Security | D51: =SUM(D13-D14) -> 0
B52: 4. Add lines 2 + 3: | D52: =SUM(D50+D51) -> 0
B53: 5. Federal Poverty Line for family size | D53: =VLOOKUP(C7,'138FPL'!E2:F9,2,FALSE) -> 11770
B54: 6. Divide line 4 by line 5: (*Converted to FPL%*) | D54: =SUM(ROUNDDOWN(D52/D53,2))*100 -> 0
B55: 7. Find applicable figure | D55: =VLOOKUP(D54,'Applicable Figure'!A2:B402,2,0) -> 0.0203
B56: 8. Multiply line 4 by line 7: | D56: =D52*D55 -> 0
B57: 9. Divide line 8 by 12: | D57: =D56/12 -> 0 | E57: Who is included in Line 10? Look up the SLCSP for each person in the household who is: (1) not eligible for any coverage (except marketplace) and (2) not eligible for another exemption. Ex: Single person eligible for Medicaid but not enrolled. Enter the LCBP in Line 1, enter zero on Line 10. **How do I know if someone may have been Medicaid-eligible? See tab "Medicaid & CHIP Eligibility"**
B58: 10. Monthly second lowest cost silver plan (SLCSP)
B59: 11. Subtract line 9 from line 10: | D59: =MAX(0,D58-D57) -> 0
B60: 12. Subtract line 11 from line 1: | D60: =MAX(0,D49-D59) -> 0
B61: Annual cost of marketplace coverage: | D61: =D60*12 -> 0
B62: =IF(D61>D33,"Marketplace coverage is unaffordable. Code A applies.","Marketplace coverage is affordable. Code A does NOT apply.") -> Marketplace coverage is affordable. Code A does NOT apply.
B63: If there are midyear changes, you may need to complete this tool more than once for a tax household. For example, if someone was uninsured without an employer offer in January - June, then had an employer offer of coverage for the rest of the year, run this tool twice with the same annual income. For January - June, measure the affordability of marketplace coverage. For July - December, measure the affordability of the employer offer.

Sheet Where Do I Find LCBP & SLCSP
A1: For States with Federally-Faciliated Marketplaces (i.e. states that use Healthcare.gov)
A2: Go to: | B2: www.healthcare.gov/tax-tool | D2: Select "Claim an 'affordability' exemption" and follow the instructions
A4: For States with State-Based Marketplaces (all states listed below)
A5: State | B5: LCBP Lookup Tool | C5: SLCSP Lookup Tool | D5: Tips
A6: California | B6: 2016 plan compare tool not available at this time - see tips | D6: Covered California has not made 2016 plan cost information available online. Call the marketplace or use www.healthpocket.com for 2016 plan information.
A7: Colorado | B7: LCBP: tinyurl.com/ColLCBP | C7: SLCSP: tinyurl.com/ColSLCSP | D7: The LCBP tool only allows entry of one family member at a time. List everyone who should be included in line 1. The SLCSP allows the entry of multiple hosehold members. Only enter those who should be included in Line 10.
A8: Connecticut | B8: The LCBP and SLCSP tools have not been updated for 2016 (as of 2/24/2017) - see tips | D8: Health Access CT has not made 2016 plan cost information available online. Call the marketplace or use www.healthpocket.com for 2016 plan information.
A9: District of Columbia | B9: LCBP: tinyurl.com/DC-Bronze | C9: SLCSP: tinyurl.com/DC-Silver | D9: The LCBP is a pdf. Look up cost of plan for each family member. The SLCSP is a tax tool that asks enough questions to do an approximate Medicaid determination which eliminates the guesswork for tax preparers in understanding whether the taxpayer should have a value on Line 10. To calculate SLCSP in desired months, indicate that everyone who meets the definition for Line 10 were enrolled in a health plan in those months.
A10: Hawaii | B10: Use Healthcare.gov/tax-tool | D10: As of TY2016, Hawai'i no longer uses a state-based marketplace website for enrollment.
A11: Idaho | B11: General tax information: tinyurl.com/ID-tax-info (click on the Second Lowest Cost Silver Calculator) | D11: The SLCSP and LCBP calculator is a downloadable Excel tool. Run the tool twice if the people included in Line 1 and Line 10 are different.
A12: Kentucky | B12: LCBP: tinyurl.com/Ky-Bronze | C12: SLCSP: tinyurl.com/Ky-Silver | D12: Note that the instructions for the LCBP are misleading. Enter everyone who meets the definition for Line 1, including people in public coverage. Do not just enter people who are uninsured. To calculate SLCSP for desired months, indicate that everyone who meets the definition for Line 10 was enrolled in a health plan in those months.
A13: Maryland | B13: LCBP: tinyurl.com/MD-Bronze | C13: SLCSP: tinyurl.com/MD-Silver | D13: Note that the instructions for the KCBP are incorrect. Enter everyone wh meets the definition for Line 1 (including people in puvlic coverage). Do not just enter people who are uninusred. To calculate SLCSP for desired months, indicate that everyone who meets the definition for Line 10 was enrolled in a health plan for those months.
A14: Massachusetts | B14: LCBP: tinyurl.com/MassLCBP | C14: SLCSP: tinyurl.com/MassSLCSP | D14: To calculate SLCSP for desired months, indicate that everyone who meets the definition for Line 10 were enrolled in a health plan in those months. Remember to enter only the people who meet the definitions for inclusion in Lines 1 and 10.
A15: Minnesota | B15: Use Plan Compare tool: tinyurl.com/MN-PlanFinder | D15: This tax tool requires use of the plan compare tool. Remember that the people who are included in Line 1 and Line 10 of the Marketplace Affordability Worksheet may be different. You may need to run two searches of the plan selection tool. Sort plans from lowest to highest cost.
A16: New Mexico | B16: Use Healthcare.gov/tax-tool
A17: New York | B17: LCBP: tinyurl.com/NY-Bronze | C17: SLCSP: tinyurl.com/NY-Silver
A18: Nevada | B18: Use Healthcare.gov/tax-tool
A19: Oregon | B19: Use Healthcare.gov/tax-tool
A20: Rhode Island | B20: LCBP and SLCSP premims vary by age: tinyurl.com/RI-Premiums | D20: Look up cost of plan for each family member
A21: Washington | B21: LCBP: tinyurl.com/WashLCBP | C21: SLCSP: tinyurl.com/WashSLCSP

Sheet Medicaid & CHIP Eligibility

Sheet Filing Threshold (hidden)
A1: Filing Threshold
C2: Tax Payer Under 65 | D2: Tax Payer Older 65
A3: Single | C3: 10350 | D3: 11900
A4: MFJ | C4: 20700 | D4: 23200 | E4: 21950
A5: MFS | C5: 4050
A6: Head of Household | C6: 13350 | D6: 14900
A7: Widower w Depedent | C7: 16650 | D7: 17900

Sheet 138FPL (hidden)
B1: If Yes, Test Income Against 138% FPL | F1: 100% FPL | G1: 138% FPL
A2: 1 | B2: 16243 | E2: 1 | F2: 11770 | G2: =SUM(F2*1.38) -> 16242.6
A3: 2 | B3: 21983 | E3: 2 | F3: 15930 | G3: =SUM(F3*1.38) -> 21983.4
A4: 3 | B4: 27724 | E4: 3 | F4: 20090 | G4: 27724.2
A5: 4 | B5: 33465 | E5: 4 | F5: 24250 | G5: 33465
A6: 5 | B6: 39206 | E6: 5 | F6: 28410 | G6: 39205.8
A7: 6 | B7: 44947 | E7: 6 | F7: 32570 | G7: 44946.6
A8: 7 | B8: 50687 | E8: 7 | F8: 36730 | G8: 50687.4
A9: 8 | B9: 56428 | E9: 8 | F9: 40890 | G9: 56428.2

Sheet Applicable Figure (hidden)
A1: FPL | B1: Applicable Figure
A2: 0 | B2: 0.0203
A3: =A2+1 -> 1 | B3: 0.0203
A4: =A3+1 -> 2 | B4: 0.0203
A5: 3 | B5: 0.0203
A6: 4 | B6: 0.0203
A7: 5 | B7: 0.0203
A8: 6 | B8: 0.0203
A9: 7 | B9: 0.0203
A10: 8 | B10: 0.0203
A11: 9 | B11: 0.0203
A12: 10 | B12: 0.0203
A13: 11 | B13: 0.0203
A14: 12 | B14: 0.0203
A15: 13 | B15: 0.0203
A16: 14 | B16: 0.0203
A17: 15 | B17: 0.0203
A18: 16 | B18: 0.0203
A19: 17 | B19: 0.0203
A20: 18 | B20: 0.0203
A21: 19 | B21: 0.0203
A22: 20 | B22: 0.0203
A23: 21 | B23: 0.0203
A24: 22 | B24: 0.0203
A25: 23 | B25: 0.0203
A26: 24 | B26: 0.0203
A27: 25 | B27: 0.0203
A28: 26 | B28: 0.0203
A29: 27 | B29: 0.0203
A30: 28 | B30: 0.0203
A31: 29 | B31: 0.0203
A32: 30 | B32: 0.0203
A33: 31 | B33: 0.0203
A34: 32 | B34: 0.0203
A35: 33 | B35: 0.0203
A36: 34 | B36: 0.0203
A37: 35 | B37: 0.0203
A38: 36 | B38: 0.0203
A39: 37 | B39: 0.0203
A40: 38 | B40: 0.0203
A41: 39 | B41: 0.0203
A42: 40 | B42: 0.0203
A43: 41 | B43: 0.0203
A44: 42 | B44: 0.0203
A45: 43 | B45: 0.0203
A46: 44 | B46: 0.0203
A47: 45 | B47: 0.0203
A48: 46 | B48: 0.0203
A49: 47 | B49: 0.0203
A50: 48 | B50: 0.0203
A51: 49 | B51: 0.0203
A52: 50 | B52: 0.0203
A53: 51 | B53: 0.0203
A54: 52 | B54: 0.0203
A55: 53 | B55: 0.0203
A56: 54 | B56: 0.0203
A57: 55 | B57: 0.0203
A58: 56 | B58: 0.0203
A59: 57 | B59: 0.0203
A60: 58 | B60: 0.0203
A61: 59 | B61: 0.0203
A62: 60 | B62: 0.0203
A63: 61 | B63: 0.0203
A64: 62 | B64: 0.0203
A65: 63 | B65: 0.0203
A66: 64 | B66: 0.0203
A67: 65 | B67: 0.0203
A68: =A67+1 -> 66 | B68: 0.0203
A69: 67 | B69: 0.0203
A70: 68 | B70: 0.0203
A71: 69 | B71: 0.0203
A72: 70 | B72: 0.0203
A73: 71 | B73: 0.0203
A74: 72 | B74: 0.0203
A75: 73 | B75: 0.0203
A76: 74 | B76: 0.0203
A77: 75 | B77: 0.0203
A78: 76 | B78: 0.0203
A79: 77 | B79: 0.0203
A80: 78 | B80: 0.0203
A81: 79 | B81: 0.0203
A82: 80 | B82: 0.0203
A83: 81 | B83: 0.0203
A84: 82 | B84: 0.0203
A85: 83 | B85: 0.0203
A86: 84 | B86: 0.0203
A87: 85 | B87: 0.0203
A88: 86 | B88: 0.0203
A89: 87 | B89: 0.0203
A90: 88 | B90: 0.0203
A91: 89 | B91: 0.0203
A92: 90 | B92: 0.0203
A93: 91 | B93: 0.0203
A94: 92 | B94: 0.0203
A95: 93 | B95: 0.0203
A96: 94 | B96: 0.0203
A97: 95 | B97: 0.0203
A98: 96 | B98: 0.0203
A99: 97 | B99: 0.0203
A100: 98 | B100: 0.0203
A101: 99 | B101: 0.0203
A102: 100 | B102: 0.0203
A103: 101 | B103: 0.0203
A104: 102 | B104: 0.0203
A105: 103 | B105: 0.0203
A106: 104 | B106: 0.0203
A107: 105 | B107: 0.0203
A108: 106 | B108: 0.0203
A109: 107 | B109: 0.0203
A110: 108 | B110: 0.0203
A111: 109 | B111: 0.0203
A112: 110 | B112: 0.0203
A113: 111 | B113: 0.0203
A114: 112 | B114: 0.0203
A115: 113 | B115: 0.0203
A116: 114 | B116: 0.0203
A117: 115 | B117: 0.0203
A118: 116 | B118: 0.0203
A119: 117 | B119: 0.0203
A120: 118 | B120: 0.0203
A121: 119 | B121: 0.0203
A122: 120 | B122: 0.0203
A123: 121 | B123: 0.0203
A124: 122 | B124: 0.0203
A125: 123 | B125: 0.0203
A126: 124 | B126: 0.0203
A127: 125 | B127: 0.0203
A128: 126 | B128: 0.0203
A129: 127 | B129: 0.0203
A130: 128 | B130: 0.0203
A131: 129 | B131: 0.0203
A132: =A131+1 -> 130 | B132: 0.0203
A133: 131 | B133: 0.0203
A134: 132 | B134: 0.0203
A135: 133 | B135: 0.0305
A136: 134 | B136: 0.0311
A137: 135 | B137: 0.0317
A138: 136 | B138: 0.0323
A139: 137 | B139: 0.0329
A140: 138 | B140: 0.0335
A141: 139 | B141: 0.0341
A142: 140 | B142: 0.0347
A143: 141 | B143: 0.0353
A144: 142 | B144: 0.0359
A145: 143 | B145: 0.0365
A146: 144 | B146: 0.0371
A147: 145 | B147: 0.0377
A148: 146 | B148: 0.0383
A149: 147 | B149: 0.0389
A150: 148 | B150: 0.0395
A151: 149 | B151: 0.0401
A152: 150 | B152: 0.0407
A153: 151 | B153: 0.0412
A154: 152 | B154: 0.0416
A155: 153 | B155: 0.0421
A156: 154 | B156: 0.0426
A157: 155 | B157: 0.043
A158: 156 | B158: 0.0435
A159: 157 | B159: 0.044
A160: 158 | B160: 0.0444
A161: 159 | B161: 0.0449
A162: 160 | B162: 0.0454
A163: 161 | B163: 0.0458
A164: 162 | B164: 0.0463
A165: 163 | B165: 0.0468
A166: 164 | B166: 0.0473
A167: 165 | B167: 0.0477
A168: 166 | B168: 0.0482
A169: 167 | B169: 0.0487
A170: 168 | B170: 0.0491
A171: 169 | B171: 0.0496
A172: 170 | B172: 0.0501
A173: 171 | B173: 0.0505
A174: 172 | B174: 0.051
A175: 173 | B175: 0.0515
A176: 174 | B176: 0.0519
A177: 175 | B177: 0.0524
A178: 176 | B178: 0.0529
A179: 177 | B179: 0.0533
A180: 178 | B180: 0.0538
A181: 179 | B181: 0.0543
A182: 180 | B182: 0.0547
A183: 181 | B183: 0.0552
A184: 182 | B184: 0.0557
A185: 183 | B185: 0.0561
A186: 184 | B186: 0.0566
A187: 185 | B187: 0.0571
A188: 186 | B188: 0.0575
A189: 187 | B189: 0.058
A190: 188 | B190: 0.0585
A191: 189 | B191: 0.059
A192: 190 | B192: 0.0594
A193: 191 | B193: 0.0599
A194: 192 | B194: 0.0604
A195: 193 | B195: 0.0608
A196: =A195+1 -> 194 | B196: 0.0613
A197: 195 | B197: 0.0618
A198: 196 | B198: 0.0622
A199: 197 | B199: 0.0627
A200: 198 | B200: 0.0632
... 300 more rows
